lending/lending_fUSD_20250719
["ID","MTS","AMOUNT","RATE_DAILY","PERIOD"]
[373245394,1752922256908,-480.0,0.00019287,2]
[373245395,1752922256918,-861.59,0.00019287,2]
[373245396,1752922256929,-442.93343051,0.00019287,2]
[373245397,1752922256938,-448.0051576,0.00019287,2]
[373245398,1752922256948,-442.41492663,0.00019287,2]
[373245399,1752922256957,-475.90583131,0.00019287,2]
[373245400,1752922256967,-480.0,0.00019287,2]
[373245401,1752922256977,-848.57,0.00019287,2]
[373245402,1752922256987,-447.62004771,0.00019287,2]
[373245403,1752922256997,-440.0,0.00019287,2]
[373245404,1752922257006,-442.78613542,0.00019287,2]
[373245405,1752922257016,-448.45309623,0.00019287,2]
[373245406,1752922257025,-480.0,0.00019287,2]
[373245407,1752922257035,-480.0,0.00019287,2]
[373245408,1752922257045,-557.8,0.00019287,2]
[373245409,1752922257054,-480.0,0.00019287,2]
[373245410,1752922257064,-480.0,0.00019287,2]
[373245411,1752922257073,-480.0,0.00019287,2]
[373245412,1752922257083,-444.9342095,0.00019287,2]
[373245413,1752922257092,-511.8,0.00019287,2]
[373245414,1752922257101,-480.0,0.00019287,2]
[373245415,1752922257111,-480.0,0.00019287,2]
[373245416,1752922257120,-480.0,0.00019287,2]
[373245417,1752922257130,-441.57974439,0.00019287,2]
[373245418,1752922257139,-443.5143979,0.00019287,2]
[373245419,1752922257148,-441.98459746,0.00019287,2]
[373245420,1752922257157,-480.0,0.00019287,2]
[373245421,1752922257166,-480.0,0.00019287,2]
[373245422,1752922257175,-480.0,0.00019287,2]
[373245423,1752922257185,-480.0,0.00019287,2]
[373245424,1752922257195,-480.0,0.00019287,2]
[373245425,1752922257203,-440.0,0.00019287,2]
[373245426,1752922257212,-687.69,0.00019287,2]
[373245427,1752922257221,-480.0,0.00019287,2]
[373245428,1752922257231,-445.09696296,0.00019287,2]
[373245429,1752922257240,-480.0,0.00019287,2]
[373245430,1752922257249,-444.54190811,0.00019287,2]
[373245431,1752922257258,-480.0,0.00019287,2]
[373245432,1752922257267,-480.0,0.00019287,2]
[373245433,1752922257275,-445.47667161,0.00019287,2]
[373245434,1752922257284,-447.10418522,0.00019287,2]
[373245435,1752922257295,-3297.54,0.00019287,2]
[373245436,1752922257304,-443.99785997,0.00019287,2]
[373245437,1752922257314,-480.0,0.00019287,2]
[373245438,1752922257323,-465.74680535,0.00019287,2]
[373245439,1752922257332,-495.02,0.00019287,2]
[373245440,1752922257342,-1455.87,0.00019287,2]
[373245441,1752922257351,-480.0,0.00019287,2]
[373245442,1752922257360,-480.0,0.00019287,2]
[373245443,1752922257370,-480.0,0.00019287,2]
[373245444,1752922257379,-659.75,0.00019287,2]
[373245445,1752922257388,-480.0,0.00019287,2]
[373245446,1752922257398,-480.0,0.00019287,2]
[373245447,1752922257407,-1574.33,0.00019287,2]
[373245448,1752922257415,-480.0,0.00019287,2]
[373245449,1752922257424,-2169.2,0.00019287,2]
[373245450,1752922257433,-3376.92,0.00019287,2]
[373245451,1752922257442,-480.0,0.00019287,2]
[373245452,1752922257451,-444.34911231,0.00019287,2]
[373245453,1752922257460,-446.1798204,0.00019287,2]
[373245454,1752922257469,-480.0,0.00019287,2]
[373245455,1752922257478,-450.18553703,0.00019287,2]
[373245456,1752922257488,-453.51287583,0.00019287,2]
[373245457,1752922257497,-588.06,0.00019287,2]
[373245458,1752922257506,-480.0,0.00019287,2]
[373245459,1752922257515,-480.0,0.00019287,2]
[373245460,1752922257524,-480.0,0.00019287,2]
[373245461,1752922257534,-591.09,0.00019287,2]
[373245462,1752922257544,-493.46,0.00019287,2]
[373245463,1752922257554,-576.04,0.00019287,2]
[373245464,1752922257563,-443.93753169,0.00019287,2]
[373245465,1752922257573,-480.0,0.00019287,2]
[373245466,1752922257582,-480.0,0.00019287,2]
[373245467,1752922257591,-743.26,0.00019287,2]
[373245468,1752922257600,-480.0,0.00019287,2]
[373245469,1752922257609,-1474.2,0.00019287,2]
[373245470,1752922257618,-480.0,0.00019287,2]
[373245471,1752922257631,-440.0,0.00019287,2]
[373245472,1752922257641,-480.0,0.00019287,2]
[373245473,1752922257650,-2172.21,0.00019287,2]
[373245474,1752922257659,-480.0,0.00019287,2]
[373245475,1752922257670,-480.0,0.00019287,2]
[373245476,1752922257680,-480.0,0.00019287,2]
[373245477,1752922257689,-1462.78,0.00019287,2]
[373245478,1752922257699,-513.05,0.00019287,2]
[373245479,1752922257710,-480.0,0.00019287,2]
[373245480,1752922257721,-440.0,0.00019287,2]
[373245481,1752922257731,-480.0,0.00019287,2]
[373245482,1752922257740,-480.0,0.00019287,2]
[373245483,1752922257749,-444.92121638,0.00019287,2]
[373245484,1752922257759,-480.0,0.00019287,2]
[373245485,1752922257768,-735.14,0.00019287,2]
[373245486,1752922257777,-787.17,0.00019287,2]
[373245487,1752922257786,-480.0,0.00019287,2]
[373245488,1752922257799,-480.0,0.00019287,2]
[373245489,1752922257808,-1284.12,0.00019287,2]
[373245490,1752922257818,-480.0,0.00019287,2]
[373245491,1752922257827,-480.0,0.00019287,2]
[373245492,1752922257836,-536.15,0.00019287,2]
[373245493,1752922257845,-480.0,0.00019287,2]
[373245494,1752922257855,-1107.05,0.00019287,2]
[373245495,1752922257864,-480.0,0.00019287,2]
[373245496,1752922257874,-480.0,0.00019287,2]
[373245497,1752922257883,-2107.73,0.00019287,2]
[373245498,1752922257893,-480.0,0.00019287,2]
[373245499,1752922257902,-480.0,0.00019287,2]
[373245500,1752922257912,-480.0,0.00019287,2]
[373245501,1752922257921,-480.0,0.00019287,2]
[373245502,1752922257930,-1478.58,0.00019287,2]
[373245503,1752922257940,-480.0,0.00019287,2]
[373245504,1752922257949,-480.0,0.00019287,2]
[373245505,1752922257959,-480.0,0.00019287,2]
[373245506,1752922257969,-480.0,0.00019287,2]
[373245507,1752922257978,-681.5,0.00019287,2]
[373245508,1752922257987,-448.3591334,0.00019287,2]
[373245509,1752922257997,-480.0,0.00019287,2]
[373245510,1752922258006,-480.0,0.00019287,2]
[373245511,1752922258015,-2270.49,0.00019287,2]
[373245512,1752922258024,-440.0,0.00019287,2]
[373245513,1752922258033,-480.0,0.00019287,2]
[373245514,1752922258043,-480.0,0.00019287,2]
[373245515,1752922258053,-480.0,0.00019287,2]
[373245516,1752922258062,-480.0,0.00019287,2]
[373245517,1752922258071,-442.47539268,0.00019287,2]
[373245518,1752922258080,-538.13,0.00019287,2]
[373245519,1752922258090,-480.0,0.00019287,2]
[373245520,1752922258099,-480.0,0.00019287,2]
[373245521,1752922258108,-1412.35,0.00019287,2]
[373245522,1752922258118,-480.0,0.00019287,2]
[373245523,1752922258127,-480.0,0.00019287,2]
[373245524,1752922258136,-1430.96,0.00019287,2]
[373245525,1752922258146,-480.0,0.00019287,2]
[373245526,1752922258155,-460.0,0.00019287,2]
[373245527,1752922258165,-1000.0,0.00019287,2]
[373245528,1752922258174,-440.0,0.00019287,2]
[373245529,1752922258183,-480.0,0.00019287,2]
[373245530,1752922258192,-480.0,0.00019287,2]
[373245531,1752922258202,-480.0,0.00019287,2]
[373245532,1752922258211,-440.0,0.00019287,2]
[373245533,1752922258220,-480.0,0.00019287,2]
[373245534,1752922258229,-1208.93,0.00019287,2]
[373245535,1752922258239,-480.0,0.00019287,2]
[373245536,1752922258248,-480.0,0.00019287,2]
[373245537,1752922258257,-480.0,0.00019287,2]
[373245538,1752922258267,-440.0,0.00019287,2]
[373245539,1752922258276,-196.13497031,0.00019287,2]
[373245540,1752922258286,-480.0,0.00019287,2]
[373245541,1752922258296,-548.17,0.00019287,2]
[373245542,1752922258305,-480.0,0.00019287,2]
[373245543,1752922258314,-480.0,0.00019287,2]
[373245544,1752922258324,-480.0,0.00019287,2]
[373245545,1752922258333,-480.0,0.00019287,2]
[373245546,1752922258343,-480.0,0.00019287,2]
[373245547,1752922258352,-3722.95,0.00019287,2]
[373245548,1752922258361,-516.27976323,0.00019287,2]
[373245549,1752922258370,-480.0,0.00019287,2]
[373245550,1752922258379,-480.0,0.00019287,2]
[373245551,1752922258388,-648.45,0.00019287,2]
[373245552,1752922258398,-484.42,0.00019287,2]
[373245553,1752922258407,-480.0,0.00019287,2]
[373245554,1752922258416,-643.93,0.00019287,2]
[373245555,1752922258425,-480.0,0.00019287,2]
[373245556,1752922258435,-445.08893159,0.00019287,2]
[373245557,1752922258444,-480.0,0.00019287,2]
[373245558,1752922258454,-519.96,0.00019287,2]
[373245559,1752922258463,-480.0,0.00019287,2]
[373245560,1752922258473,-480.0,0.00019287,2]
[373245561,1752922258482,-480.0,0.00019287,2]
[373245562,1752922258492,-480.0,0.00019287,2]
[373245563,1752922258502,-1444.47,0.00019287,2]
[373245564,1752922258511,-480.0,0.00019287,2]
[373245565,1752922258521,-480.0,0.00019287,2]
[373245566,1752922258530,-480.0,0.00019287,2]
[373245567,1752922258539,-716.2,0.00019287,2]
[373245568,1752922258549,-480.0,0.00019287,2]
[373245569,1752922258558,-480.0,0.00019287,2]
[373245570,1752922258567,-480.0,0.00019287,2]
[373245571,1752922258576,-480.0,0.00019287,2]
[373245572,1752922258586,-480.0,0.00019287,2]
[373245573,1752922258595,-480.0,0.00019287,2]
[373245574,1752922258604,-1010.12,0.00019287,2]
[373245575,1752922258614,-480.0,0.00019287,2]
[373245576,1752922258625,-480.0,0.00019287,2]
[373245577,1752922258635,-480.0,0.00019287,2]
[373245578,1752922258644,-1134.71,0.00019287,2]
[373245579,1752922258654,-1001.22,0.00019287,2]
[373245580,1752922258663,-480.0,0.00019287,2]
[373245581,1752922258673,-480.0,0.00019287,2]
[373245582,1752922258683,-753.66,0.00019287,2]
[373245583,1752922258693,-480.0,0.00019287,2]
[373245584,1752922258703,-480.0,0.00019287,2]
[373245585,1752922258713,-480.0,0.00019287,2]
[373245586,1752922258722,-480.0,0.00019287,2]
[373245587,1752922258731,-1926.46,0.00019287,2]
[373245588,1752922258741,-480.0,0.00019287,2]
[373245589,1752922258751,-480.0,0.00019287,2]
[373245590,1752922258760,-480.0,0.00019287,2]
[373245591,1752922258770,-480.0,0.00019287,2]
[373245592,1752922258779,-480.0,0.00019287,2]
[373245593,1752922258789,-14763.9,0.00019287,2]
[373245594,1752922258800,-480.0,0.00019287,2]
[373245595,1752922258809,-480.0,0.00019287,2]
[373245596,1752922258819,-480.0,0.00019287,2]
[373245597,1752922258829,-480.0,0.00019287,2]
[373245598,1752922258838,-850.67,0.00019287,2]
[373245599,1752922258849,-480.0,0.00019287,2]
[373245600,1752922258858,-480.0,0.00019287,2]
[373245601,1752922258868,-480.0,0.00019287,2]
[373245602,1752922258878,-262.68705969,0.00019287,2]
[373245603,1752922258887,-520.8522355,0.00019287,2]
[373245604,1752922258896,-480.0,0.00019287,2]
[373245605,1752922258906,-480.0,0.00019287,2]
[373245606,1752922258915,-480.0,0.00019287,2]
[373245607,1752922258925,-504.26,0.00019287,2]
[373245608,1752922258934,-480.0,0.00019287,2]
[373245609,1752922258944,-480.0,0.00019287,2]
[373245610,1752922258953,-480.0,0.00019287,2]
[373245611,1752922258963,-480.0,0.00019287,2]
[373245612,1752922258972,-480.0,0.00019287,2]
[373245613,1752922258982,-3399.67,0.00019287,2]
[373245614,1752922258991,-584.79,0.00019287,2]
[373245615,1752922259001,-442.01480635,0.00019287,2]
[373245616,1752922259011,-480.0,0.00019287,2]
[373245617,1752922259023,-480.0,0.00019287,2]
[373245618,1752922259033,-2654.42,0.00019287,2]
[373245619,1752922259043,-480.0,0.00019287,2]
[373245620,1752922259052,-480.0,0.00019287,2]
[373245621,1752922259062,-480.0,0.00019287,2]
[373245622,1752922259072,-480.0,0.00019287,2]
[373245623,1752922259081,-441.39928551,0.00019287,2]
[373245624,1752922259091,-603.57,0.00019287,2]
[373245625,1752922259101,-480.0,0.00019287,2]
[373245626,1752922259111,-480.0,0.00019287,2]
[373245627,1752922259120,-480.0,0.00019287,2]
[373245628,1752922259130,-480.0,0.00019287,2]
[373245629,1752922259139,-480.0,0.00019287,2]
[373245630,1752922259149,-480.0,0.00019287,2]
[373245631,1752922259159,-480.0,0.00019287,2]
[373245632,1752922259169,-736.01,0.00019287,2]
[373245633,1752922259179,-528.72,0.00019287,2]
[373245634,1752922259188,-440.0,0.00019287,2]
[373245635,1752922259198,-473.75798311,0.00019287,2]
[373245636,1752922259208,-501.90737253,0.00019287,2]
[373245637,1752922259218,-480.0,0.00019287,2]
[373245638,1752922259227,-467.6266274,0.00019287,2]
[373245639,1752922259237,-920.96,0.00019287,2]
[373245640,1752922259246,-480.0,0.00019287,2]
[373245641,1752922259256,-480.0,0.00019287,2]
[373245642,1752922259266,-480.0,0.00019287,2]
[373245643,1752922259275,-480.0,0.00019287,2]
[373245644,1752922259285,-480.0,0.00019287,2]
[373245645,1752922259295,-455.88762435,0.00019287,2]
[373245646,1752922259305,-582.63,0.00019287,2]
[373245647,1752922259315,-440.0,0.00019287,2]
[373245648,1752922259325,-2078.75,0.00019287,2]
[373245649,1752922259335,-480.0,0.00019287,2]
[373245650,1752922259345,-480.0,0.00019287,2]
[373245651,1752922259354,-440.0,0.00019287,2]
[373245652,1752922259363,-480.0,0.00019287,2]
[373245653,1752922259373,-480.0,0.00019287,2]
[373245654,1752922259383,-480.0,0.00019287,2]
[373245655,1752922259393,-480.0,0.00019287,2]
[373245656,1752922259403,-444.33955091,0.00019287,2]
[373245657,1752922259412,-480.0,0.00019287,2]
[373245658,1752922259422,-480.0,0.00019287,2]
[373245659,1752922259431,-480.0,0.00019287,2]
[373245660,1752922259441,-684.13,0.00019287,2]
[373245661,1752922259451,-480.0,0.00019287,2]
[373245662,1752922259460,-457.65010913,0.00019287,2]
[373245663,1752922259470,-480.0,0.00019287,2]
[373245664,1752922259479,-440.0,0.00019287,2]
[373245665,1752922259489,-1086.48,0.00019287,2]
[373245666,1752922259498,-444.02656045,0.00019287,2]
[373245667,1752922259509,-480.0,0.00019287,2]
[373245668,1752922259518,-480.0,0.00019287,2]
[373245669,1752922259528,-823.27,0.00019287,2]
[373245670,1752922259537,-601.91,0.00019287,2]
[373245671,1752922259548,-480.0,0.00019287,2]
[373245672,1752922259558,-480.0,0.00019287,2]
[373245673,1752922259567,-480.0,0.00019287,2]
[373245674,1752922259577,-480.0,0.00019287,2]
[373245675,1752922259587,-480.0,0.00019287,2]
[373245676,1752922259596,-2672.28,0.00019287,2]
[373245677,1752922259605,-513.99,0.00019287,2]
[373245678,1752922259615,-480.0,0.00019287,2]
[373245679,1752922259626,-480.0,0.00019287,2]
[373245680,1752922259636,-480.0,0.00019287,2]
[373245681,1752922259645,-440.0,0.00019287,2]
[373245682,1752922259654,-440.0,0.00019287,2]
[373245683,1752922259664,-616.88,0.00019287,2]
[373245684,1752922259674,-480.0,0.00019287,2]
[373245685,1752922259684,-440.0,0.00019287,2]
[373245686,1752922259693,-480.0,0.00019287,2]
[373245687,1752922259704,-1044.3,0.00019287,2]
[373245688,1752922259714,-480.0,0.00019287,2]
[373245689,1752922259724,-480.0,0.00019287,2]
[373245690,1752922259733,-480.0,0.00019287,2]
[373245691,1752922259743,-480.0,0.00019287,2]
[373245692,1752922259753,-442.15749828,0.00019287,2]
[373245693,1752922259763,-480.0,0.00019287,2]
[373245694,1752922259773,-480.0,0.00019287,2]
[373245695,1752922259783,-480.0,0.00019287,2]
[373245696,1752922259795,-441.89540726,0.00019287,2]
[373245697,1752922259804,-480.0,0.00019287,2]
[373245698,1752922259814,-480.0,0.00019287,2]
[373245699,1752922259823,-574.67,0.00019287,2]
[373245700,1752922259833,-480.0,0.00019287,2]
[373245701,1752922259843,-480.0,0.00019287,2]
[373245702,1752922259854,-440.0,0.00019287,2]
[373245703,1752922259866,-813.79,0.00019287,2]
[373245704,1752922259876,-480.0,0.00019287,2]
[373245705,1752922259886,-480.0,0.00019287,2]
[373245706,1752922259896,-480.0,0.00019287,2]
[373245707,1752922259905,-480.0,0.00019287,2]
[373245708,1752922259917,-480.0,0.00019287,2]
[373245709,1752922259927,-480.0,0.00019287,2]
[373245710,1752922259936,-434.50263224,0.00019287,2]
[373245711,1752922259946,-467.39228579,0.00019287,2]
[373245712,1752922259956,-443.01046488,0.00019287,2]
[373245713,1752922259965,-440.0,0.00019287,2]
[373245714,1752922259975,-480.0,0.00019287,2]
[373245715,1752922259985,-480.0,0.00019287,2]
[373245716,1752922259994,-440.0,0.00019287,2]
[373245717,1752922260004,-480.0,0.00019287,2]
[373245718,1752922260013,-480.0,0.00019287,2]
[373245719,1752922260024,-3431.57,0.00019287,2]
[373245720,1752922260033,-1310.77,0.00019287,2]
[373245721,1752922260045,-545.36558891,0.00019287,2]
[373245722,1752922260056,-440.0,0.00019287,2]
[373245723,1752922260066,-858.48,0.00019287,2]
[373245724,1752922260076,-480.0,0.00019287,2]
[373245725,1752922260086,-460.0,0.00019287,2]
[373245726,1752922260096,-480.0,0.00019287,2]
[373245727,1752922260105,-436.86006695,0.00019287,2]
[373245728,1752922260115,-480.0,0.00019287,2]
[373245729,1752922260125,-463.96599952,0.00019287,2]
[373245730,1752922260135,-480.0,0.00019287,2]
[373245731,1752922260144,-480.0,0.00019287,2]
[373245732,1752922260154,-480.0,0.00019287,2]
[373245733,1752922260164,-480.0,0.00019287,2]
[373245734,1752922260174,-480.0,0.00019287,2]
[373245735,1752922260183,-440.0,0.00019287,2]
[373245736,1752922260193,-497.93,0.00019287,2]
[373245737,1752922260203,-480.0,0.00019287,2]
[373245738,1752922260213,-480.0,0.00019287,2]
[373245739,1752922260223,-480.0,0.00019287,2]
[373245740,1752922260234,-480.0,0.00019287,2]
[373245741,1752922260244,-480.0,0.00019287,2]
[373245742,1752922260254,-480.0,0.00019287,2]
[373245743,1752922260264,-480.0,0.00019287,2]
[373245744,1752922260274,-1367.34,0.00019287,2]
[373245745,1752922260284,-480.0,0.00019287,2]
[373245746,1752922260296,-480.0,0.00019287,2]
[373245747,1752922260305,-1524.22,0.00019287,2]
[373245748,1752922260315,-480.0,0.00019287,2]
[373245749,1752922260326,-480.0,0.00019287,2]
[373245750,1752922260336,-480.0,0.00019287,2]
[373245751,1752922260351,-480.0,0.00019287,2]
[373245752,1752922260360,-441.31688209,0.00019287,2]
[373245753,1752922260370,-5259.12,0.00019287,2]
[373245754,1752922260380,-440.0,0.00019287,2]
[373245755,1752922260390,-440.0,0.00019287,2]
[373245756,1752922260399,-480.0,0.00019287,2]
[373245757,1752922260409,-480.0,0.00019287,2]
[373245758,1752922260418,-441.67522003,0.00019287,2]
[373245759,1752922260428,-480.0,0.00019287,2]
[373245760,1752922260438,-440.0,0.00019287,2]
[373245761,1752922260447,-480.0,0.00019287,2]
[373245762,1752922260458,-440.0,0.00019287,2]
[373245763,1752922260467,-480.0,0.00019287,2]
[373245764,1752922260477,-480.0,0.00019287,2]
[373245765,1752922260487,-448.27276499,0.00019287,2]
[373245766,1752922260496,-577.11,0.00019287,2]
[373245767,1752922260506,-480.0,0.00019287,2]
[373245768,1752922260515,-480.0,0.00019287,2]
[373245769,1752922260525,-441.68196141,0.00019287,2]
[373245770,1752922260535,-480.0,0.00019287,2]
[373245771,1752922260546,-695.84787118,0.00019288,2]
[373245772,1752922260556,-1680.0,0.00019344,2]
[373245773,1752922260566,-150.0,0.00019349,4]
[373245774,1752922260575,-53109.54756108,0.00019358,2]
[373245775,1752922260585,-5391.39339653,0.00019376,2]
[373245776,1752922260595,-587.04,0.00019391,2]
[373245777,1752922260604,-2970.85,0.00019391,2]
[373245778,1752922260614,-480.0,0.00019396,2]
[373245779,1752922260627,-500.0,0.00019396,2]
[373245780,1752922260637,-500.0,0.00019396,2]
[373245781,1752922260647,-429.40965625,0.00019397,2]
[373245782,1752922260656,-423.83816358,0.00019397,2]
[373245783,1752922260666,-480.0,0.00019397,2]
[373245784,1752922260677,-480.0,0.00019397,2]
[373245785,1752922260687,-480.0,0.00019397,2]
[373245786,1752922260696,-420.0,0.00019397,2]
[373245787,1752922260707,-480.0,0.00019397,2]
[373245788,1752922260717,-420.0,0.00019397,2]
[373245789,1752922260727,-288.02,0.00019397,2]
[373245790,1752922260736,-480.0,0.00019397,2]
[373245791,1752922260746,-354.28,0.00019397,2]
[373245792,1752922260755,-600.32249822,0.00019397,2]
[373245793,1752922260765,-420.0,0.00019397,2]
[373245794,1752922260776,-349.44058219,0.00019397,2]
[373245795,1752922260786,-480.0,0.00019397,2]
[373245796,1752922260796,-480.0,0.00019397,2]
[373245797,1752922260806,-480.0,0.00019397,2]
[373245798,1752922260815,-480.0,0.00019397,2]
[373245799,1752922260825,-480.0,0.00019397,2]
[373245800,1752922260835,-257.02,0.00019397,2]
[373245801,1752922260844,-424.9215013,0.00019397,2]
[373245802,1752922260854,-622.90960212,0.00019397,2]
[373245803,1752922260864,-480.0,0.00019397,2]
[373245804,1752922260874,-517.84,0.00019397,2]
[373245805,1752922260884,-420.0,0.00019397,2]
[373245806,1752922260895,-499.89391906,0.00019397,2]
[373245807,1752922260908,-480.0,0.00019397,2]
[373245808,1752922260918,-516.00018,0.00019397,2]
[373245809,1752922260928,-480.0,0.00019397,2]
[373245810,1752922260938,-496.57579771,0.00019397,2]
[373245811,1752922260948,-153.65947052,0.00019397,2]
[373245812,1752922260958,-450.35992218,0.00019397,2]
[373245813,1752922260968,-420.0,0.00019397,2]
[373245814,1752922260978,-480.0,0.00019397,2]
[373245815,1752922260988,-435.33893025,0.00019397,2]
[373245816,1752922260998,-480.0,0.00019397,2]
[373245817,1752922261008,-480.0,0.00019397,2]
[373245818,1752922261018,-480.0,0.00019397,2]
[373245819,1752922261027,-174.09,0.00019397,2]
[373245820,1752922261037,-480.0,0.00019397,2]
[373245821,1752922261049,-446.81062697,0.00019397,2]
[373245822,1752922261059,-480.0,0.00019397,2]
[373245823,1752922261069,-560.58377974,0.00019397,2]
[373245824,1752922261079,-433.70441577,0.00019397,2]
[373245825,1752922261088,-480.0,0.00019397,2]
[373245826,1752922261098,-480.0,0.00019397,2]
[373245827,1752922261108,-439.78758657,0.00019397,2]
[373245828,1752922261118,-480.0,0.00019397,2]
[373245829,1752922261350,-420.0,0.00019397,2]
[373245830,1752922261361,-480.0,0.00019397,2]
[373245831,1752922261371,-480.0,0.00019397,2]
[373245832,1752922261381,-480.0,0.00019397,2]
[373245833,1752922261391,-426.87226347,0.00019397,2]
[373245834,1752922261400,-480.0,0.00019397,2]
[373245835,1752922261410,-481.65,0.00019397,2]
[373245836,1752922261420,-422.33324531,0.00019397,2]
[373245837,1752922261429,-426.97824123,0.00019397,2]
[373245838,1752922261438,-480.0,0.00019397,2]
[373245839,1752922261448,-480.0,0.00019397,2]
[373245840,1752922261457,-480.0,0.00019397,2]
[373245841,1752922261466,-480.0,0.00019397,2]
[373245842,1752922261476,-480.0,0.00019397,2]
[373245843,1752922261485,-480.0,0.00019397,2]
[373245844,1752922261495,-480.0,0.00019397,2]
[373245845,1752922261504,-480.0,0.00019397,2]
[373245846,1752922261514,-480.0,0.00019397,2]
[373245847,1752922261524,-480.0,0.00019397,2]
[373245848,1752922261535,-480.0,0.00019397,2]
[373245849,1752922261545,-480.0,0.00019397,2]
[373245850,1752922261555,-480.0,0.00019397,2]
[373245851,1752922261564,-480.0,0.00019397,2]
[373245852,1752922261574,-480.0,0.00019397,2]
[373245853,1752922261583,-480.0,0.00019397,2]
[373245854,1752922261593,-480.0,0.00019397,2]
[373245855,1752922261603,-480.0,0.00019397,2]
[373245856,1752922261613,-480.0,0.00019397,2]
[373245857,1752922261623,-480.0,0.00019397,2]
[373245858,1752922261635,-283.88,0.00019397,2]
[373245859,1752922261644,-480.0,0.00019397,2]
[373245860,1752922261654,-480.0,0.00019397,2]
[373245861,1752922261664,-231.39,0.00019397,2]
[373245862,1752922261674,-422.26749518,0.00019397,2]
[373245863,1752922261684,-219.94,0.00019397,2]
[373245864,1752922261694,-480.0,0.00019397,2]
[373245865,1752922261707,-420.0,0.00019397,2]
[373245866,1752922261717,-435.26834293,0.00019397,2]
[373245867,1752922261727,-534.0971824,0.00019397,2]
[373245868,1752922261736,-602.0,0.00019397,2]
[373245869,1752922261746,-480.0,0.00019397,2]
[373245870,1752922261755,-454.45846657,0.00019397,2]
[373245871,1752922261765,-420.0,0.00019397,2]
[373245872,1752922261775,-438.33156685,0.00019397,2]
[373245873,1752922261784,-429.65,0.00019397,2]
[373245874,1752922261795,-420.0,0.00019397,2]
[373245875,1752922261804,-504.66557053,0.00019397,2]
[373245876,1752922261814,-159.56,0.00019397,2]
[373245877,1752922261823,-480.0,0.00019397,2]
[373245878,1752922261832,-480.0,0.00019397,2]
[373245879,1752922261842,-480.0,0.00019397,2]
[373245880,1752922261851,-528.90511548,0.00019397,2]
[373245881,1752922261861,-461.87848732,0.00019397,2]
[373245882,1752922261871,-480.0,0.00019397,2]
[373245883,1752922261880,-480.0,0.00019397,2]
[373245884,1752922261890,-480.0,0.00019397,2]
[373245885,1752922261900,-480.0,0.00019397,2]
[373245886,1752922261911,-480.0,0.00019397,2]
[373245887,1752922261921,-424.51850149,0.00019397,2]
[373245888,1752922261931,-420.0,0.00019397,2]
[373245889,1752922261940,-480.0,0.00019397,2]
[373245890,1752922261950,-422.10305543,0.00019397,2]
[373245891,1752922261959,-480.0,0.00019397,2]
[373245892,1752922261969,-432.07631664,0.00019397,2]
[373245893,1752922261980,-217.795832,0.00019397,2]